[Event "Internationales Werder Bremen IM-Turnier"]
[Site "SV Werder Bremen, Clubräume in der Hemelinger Straße 17, Germany"]
[Date "2018.06.19"]
[Round "4.4"]
[White "Molchanov, Oleksii"]
[Black "Reuker, Jari"]
[Result "1/2-1/2"]
[TimeControl "90 Minuten/40 Züge + 30 Minuten/Rest + 30 Sekunden ab dem ersten Zug"]
[WhiteTitle "FM"]
[WhiteFideId "14119820"]
[BlackFideId "12909300"]
[WhiteElo "2350"]
[BlackElo "2389"]

1. c4 {[%clk 01:30:32]} {[%emt 00:00:28]} Nf6 {[%clk 01:30:47]} {[%emt
00:00:12]} 2. Nf3 {[%clk 01:30:39]} {[%emt 00:00:23]} e6 {[%clk 01:31:10]}
{[%emt 00:00:07]} 3. e3 {[%clk 01:30:41]} {[%emt 00:00:29]} d5 {[%clk
01:31:20]} {[%emt 00:00:20]} 4. b3 {[%clk 01:30:44]} {[%emt 00:00:27]} Be7
{[%clk 01:31:14]} {[%emt 00:00:35]} 5. Bb2 {[%clk 01:30:49]} {[%emt 00:00:25]}
O-O {[%clk 01:30:41]} {[%emt 00:01:04]} 6. Nc3 {[%clk 01:30:44]} {[%emt
00:00:34]} dxc4 {[%clk 01:30:01]} {[%emt 00:01:10]} 7. Bxc4 {[%clk 01:24:34]}
{[%emt 00:06:40]} a6 {[%clk 01:30:20]} {[%emt 00:00:11]} 8. d4 {[%clk
01:23:42]} {[%emt 00:01:22]} b5 {[%clk 01:29:26]} {[%emt 00:01:24]} 9. Be2
{[%clk 01:12:32]} {[%emt 00:11:40]} Bb7 {[%clk 01:26:45]} {[%emt 00:03:12]} 10.
O-O {[%clk 01:12:55]} {[%emt 00:00:07]} c5 {[%clk 01:23:25]} {[%emt 00:03:49]}
11. dxc5 {[%clk 01:07:53]} {[%emt 00:05:33]} Bxc5 {[%clk 01:22:16]} {[%emt
00:01:39]} 12. Qxd8 {[%clk 01:02:56]} {[%emt 00:05:27]} Rxd8 {[%clk 01:22:32]}
{[%emt 00:00:15]} 13. Rac1 {[%clk 00:59:24]} {[%emt 00:04:01]} Nbd7 {[%clk
01:21:32]} {[%emt 00:01:30]} 14. Rfd1 {[%clk 00:59:05]} {[%emt 00:00:48]} Rac8
{[%clk 01:20:06]} {[%emt 00:01:56]} 15. Nb1 {[%clk 00:55:47]} {[%emt 00:03:48]}
Nd5 {[%clk 01:01:50]} {[%emt 00:18:46]} 16. Ne5 {[%clk 00:43:15]} {[%emt
00:13:02]} Nxe5 {[%clk 00:57:04]} {[%emt 00:05:16]} 17. Bxe5 {[%clk 00:43:34]}
{[%emt 00:00:10]} f6 {[%clk 00:55:34]} {[%emt 00:02:01]} 18. Bb2 {[%clk
00:43:07]} {[%emt 00:00:58]} Bb6 {[%clk 00:53:37]} {[%emt 00:02:28]} 19. Bf3
{[%clk 00:41:42]} {[%emt 00:01:54]} Rxc1 {[%clk 00:46:10]} {[%emt 00:07:57]} 20.
Rxc1 {[%clk 00:41:16]} {[%emt 00:00:56]} Rd7 {[%clk 00:45:18]} {[%emt
00:01:21]} 21. Rd1 {[%clk 00:35:16]} {[%emt 00:06:31]} Rc7 {[%clk 00:40:34]}
{[%emt 00:05:14]} 22. Rc1 {[%clk 00:33:28]} {[%emt 00:02:18]} Rxc1+ {[%clk
00:38:24]} {[%emt 00:02:40]} 23. Bxc1 {[%clk 00:33:56]} {[%emt 00:00:02]} Kf7
{[%clk 00:36:27]} {[%emt 00:02:27]} 24. Kf1 {[%clk 00:32:53]} {[%emt 00:01:33]}
e5 {[%clk 00:34:48]} {[%emt 00:02:10]} 25. Bd2 {[%clk 00:29:32]} {[%emt
00:03:51]} Ke6 {[%clk 00:34:02]} {[%emt 00:01:15]} 26. Nc3 {[%clk 00:24:27]}
{[%emt 00:05:35]} Bc6 {[%clk 00:33:10]} {[%emt 00:01:22]} 27. Nxd5 {[%clk
00:21:48]} {[%emt 00:03:09]} Bxd5 {[%clk 00:33:35]} {[%emt 00:00:05]} 28. Bxd5+
{[%clk 00:18:45]} {[%emt 00:03:34]} Kxd5 {[%clk 00:34:01]} {[%emt 00:00:03]} 29.
Ke2 {[%clk 00:18:50]} {[%emt 00:00:25]} h5 {[%clk 00:30:08]} {[%emt 00:04:23]}
30. f3 {[%clk 00:17:00]} {[%emt 00:02:19]} e4 {[%clk 00:30:28]} {[%emt
00:00:10]} 31. f4 {[%clk 00:14:43]} {[%emt 00:02:48]} Ke6 {[%clk 00:26:10]}
{[%emt 00:04:46]} 32. h3 {[%clk 00:12:20]} {[%emt 00:02:55]} Kf5 {[%clk
00:26:34]} {[%emt 00:00:07]} 33. g3 {[%clk 00:12:17]} {[%emt 00:00:32]} Bc5
{[%clk 00:25:19]} {[%emt 00:01:45]} 34. Bc3 {[%clk 00:10:22]} {[%emt 00:02:25]}
Bf8 {[%clk 00:22:36]} {[%emt 00:03:12]} 35. Be1 {[%clk 00:10:02]} {[%emt
00:00:51]} Ke6 {[%clk 00:21:28]} {[%emt 00:01:38]} 36. g4 {[%clk 00:09:42]}
{[%emt 00:00:50]} hxg4 {[%clk 00:21:52]} {[%emt 00:00:06]} 37. hxg4 {[%clk
00:10:10]} {[%emt 00:00:03]} f5 {[%clk 00:22:06]} {[%emt 00:00:15]} 38. gxf5+
{[%clk 00:09:52]} {[%emt 00:00:48]} Kxf5 {[%clk 00:22:29]} {[%emt 00:00:07]} 39.
Bc3 {[%clk 00:09:54]} {[%emt 00:00:29]} g6 {[%clk 00:21:02]} {[%emt 00:01:57]}
40. Bd4 {[%clk 00:09:23]} {[%emt 00:01:01]} Ba3 {[%clk 00:19:29]} {[%emt
00:02:02]} 41. Kd2 {[%clk 00:08:18]} {[%emt 00:01:36]} Kg4 {[%clk 00:19:29]}
{[%emt 00:00:29]} 42. Ke2 {[%clk 00:08:46]} {[%emt 00:00:02]} Kf5 {[%clk
00:18:28]} {[%emt 00:01:31]} 43. Kd2 {[%clk 00:09:04]} {[%emt 00:00:12]} Bb4+
{[%clk 00:18:49]} {[%emt 00:00:09]} 44. Ke2 {[%clk 00:09:20]} {[%emt 00:00:13]}
Ke6 {[%clk 00:18:00]} {[%emt 00:01:19]} 45. Bg7 {[%clk 00:07:35]} {[%emt
00:02:15]} Bc5 {[%clk 00:15:12]} {[%emt 00:03:17]} 46. Bc3 {[%clk 00:07:32]}
{[%emt 00:00:33]} Kd5 {[%clk 00:15:17]} {[%emt 00:00:25]} 47. Kd2 {[%clk
00:06:46]} {[%emt 00:01:16]} Be7 {[%clk 00:15:03]} {[%emt 00:00:43]} 48. Ke2
{[%clk 00:06:29]} {[%emt 00:00:48]} Bh4 {[%clk 00:14:18]} {[%emt 00:01:15]} 49.
Kd2 {[%clk 00:06:16]} {[%emt 00:00:43]} Bd8 {[%clk 00:14:32]} {[%emt 00:00:16]}
50. Ke2 {[%clk 00:06:39]} {[%emt 00:00:07]} a5 {[%clk 00:14:56]} {[%emt
00:00:06]} 51. Kd2 {[%clk 00:06:27]} {[%emt 00:00:42]} a4 {[%clk 00:15:01]}
{[%emt 00:00:25]} 52. Ke2 {[%clk 00:06:40]} {[%emt 00:00:17]} Be7 {[%clk
00:15:12]} {[%emt 00:00:19]} 53. Kd2 {[%clk 00:05:30]} {[%emt 00:01:40]} Ba3
{[%clk 00:14:34]} {[%emt 00:01:08]} 54. Kd1 {[%clk 00:04:55]} {[%emt 00:01:05]}
Kc5 {[%clk 00:14:34]} {[%emt 00:00:30]} 55. Bf6 {[%clk 00:01:40]} {[%emt
00:03:45]} Kd5 {[%clk 00:12:49]} {[%emt 00:02:13]} 56. Bc3 {[%clk 00:01:54]}
{[%emt 00:00:18]} Ke6 {[%clk 00:12:58]} {[%emt 00:00:21]} 57. Ke2 {[%clk
00:01:59]} {[%emt 00:00:24]} Kf5 {[%clk 00:13:22]} {[%emt 00:00:07]} 58. Kd2
{[%clk 00:01:57]} {[%emt 00:00:31]} Be7 {[%clk 00:12:52]} {[%emt 00:00:59]} 59.
Ke2 {[%clk 00:29:47]} {[%emt 00:02:41]} Bc5 {[%clk 00:36:48]} {[%emt 00:06:33]}
60. Bd2 {[%clk 00:28:05]} {[%emt 00:02:13]} Ba3 {[%clk 00:34:09]} {[%emt
00:03:08]} 61. Bc3 {[%clk 00:28:16]} {[%emt 00:00:18]} Bc1 {[%clk 00:34:25]}
{[%emt 00:00:13]} 62. Bd4 {[%clk 00:28:16]} {[%emt 00:00:31]} Ke6 {[%clk
00:34:00]} {[%emt 00:00:56]} 63. Kd1 {[%clk 00:28:37]} {[%emt 00:00:09]} Ba3
{[%clk 00:34:25]} {[%emt 00:00:05]} 64. Bc3 {[%clk 00:29:02]} {[%emt 00:00:05]}
Bc5 {[%clk 00:34:45]} {[%emt 00:00:10]} 65. Ke2 {[%clk 00:29:12]} {[%emt
00:00:20]} Be7 {[%clk 00:34:45]} {[%emt 00:00:29]} 1/2-1/2

[Event "Internationales Werder Bremen IM-Turnier"]
[Site "SV Werder Bremen, Clubräume in der Hemelinger Straße 17, Germany"]
[Date "2018.06.19"]
[Round "4.1"]
[White "Grigorian, Spartak"]
[Black "Ahlander, Björn"]
[Result "1-0"]
[TimeControl "90 Minuten/40 Züge + 30 Minuten/Rest + 30 Sekunden ab dem ersten Zug"]
[BlackTitle "IM"]
[WhiteFideId "24661490"]
[BlackFideId "1700251"]
[WhiteElo "2359"]
[BlackElo "2435"]

1. Nf3 {[%clk 01:30:57]} {[%emt 00:00:02]} d5 {[%clk 01:30:37]} {[%emt
00:00:23]} 2. c4 {[%clk 01:31:22]} {[%emt 00:00:05]} e6 {[%clk 01:30:25]}
{[%emt 00:00:42]} 3. g3 {[%clk 01:31:46]} {[%emt 00:00:06]} Nf6 {[%clk
01:29:57]} {[%emt 00:00:57]} 4. Bg2 {[%clk 01:32:11]} {[%emt 00:00:05]} Be7
{[%clk 01:27:41]} {[%emt 00:02:46]} 5. O-O {[%clk 01:32:25]} {[%emt 00:00:16]}
O-O {[%clk 01:28:07]} {[%emt 00:00:04]} 6. b3 {[%clk 01:32:53]} {[%emt
00:00:02]} c5 {[%clk 01:26:27]} {[%emt 00:02:09]} 7. Bb2 {[%clk 01:33:02]}
{[%emt 00:00:22]} Nc6 {[%clk 01:26:51]} {[%emt 00:00:06]} 8. e3 {[%clk
01:33:26]} {[%emt 00:00:06]} b6 {[%clk 01:26:43]} {[%emt 00:00:37]} 9. Nc3
{[%clk 01:33:52]} {[%emt 00:00:05]} Ba6 {[%clk 01:24:06]} {[%emt 00:03:06]} 10.
Qe2 {[%clk 01:34:01]} {[%emt 00:00:21]} Qd7 {[%clk 01:21:59]} {[%emt 00:02:37]}
11. d4 {[%clk 01:34:23]} {[%emt 00:00:09]} cxd4 {[%clk 01:06:14]} {[%emt
00:16:15]} 12. exd4 {[%clk 01:34:45]} {[%emt 00:00:08]} Rac8 {[%clk 01:05:56]}
{[%emt 00:00:47]} 13. Ne5 {[%clk 01:29:55]} {[%emt 00:05:20]} Qc7 {[%clk
00:58:19]} {[%emt 00:08:07]} 14. Nb5 {[%clk 01:26:12]} {[%emt 00:04:14]} Bxb5
{[%clk 00:50:58]} {[%emt 00:07:51]} 15. cxb5 {[%clk 01:26:39]} {[%emt
00:00:03]} Nxe5 {[%clk 00:50:41]} {[%emt 00:00:46]} 16. dxe5 {[%clk 01:27:04]}
{[%emt 00:00:05]} Nd7 {[%clk 00:46:38]} {[%emt 00:04:32]} 17. Rac1 {[%clk
01:27:07]} {[%emt 00:00:27]} Qb7 {[%clk 00:46:25]} {[%emt 00:00:43]} 18. a3
{[%clk 01:26:53]} {[%emt 00:00:45]} Rxc1 {[%clk 00:44:55]} {[%emt 00:01:59]} 19.
Rxc1 {[%clk 01:27:19]} {[%emt 00:00:04]} Rc8 {[%clk 00:45:15]} {[%emt
00:00:11]} 20. Rxc8+ {[%clk 01:27:28]} {[%emt 00:00:21]} Qxc8 {[%clk 00:45:37]}
{[%emt 00:00:07]} 21. b4 {[%clk 01:27:54]} {[%emt 00:00:04]} Bg5 {[%clk
00:32:08]} {[%emt 00:13:58]} 22. f4 {[%clk 01:27:39]} {[%emt 00:00:45]} Be7
{[%clk 00:27:26]} {[%emt 00:05:12]} 23. Bh3 {[%clk 01:21:58]} {[%emt 00:06:10]}
Nf8 {[%clk 00:26:52]} {[%emt 00:01:04]} 24. Qd3 {[%clk 01:21:03]} {[%emt
00:01:26]} Qc7 {[%clk 00:26:23]} {[%emt 00:00:59]} 25. Bg4 {[%clk 01:20:15]}
{[%emt 00:01:19]} g6 {[%clk 00:23:57]} {[%emt 00:02:56]} 26. h4 {[%clk
01:18:37]} {[%emt 00:02:08]} Nd7 {[%clk 00:20:09]} {[%emt 00:04:18]} 27. Kg2
{[%clk 01:14:24]} {[%emt 00:04:42]} Bf8 {[%clk 00:20:20]} {[%emt 00:00:20]} 28.
Bd1 {[%clk 00:49:41]} {[%emt 00:25:13]} Bg7 {[%clk 00:20:15]} {[%emt 00:00:34]}
29. Qe2 {[%clk 00:49:01]} {[%emt 00:01:11]} Kf8 {[%clk 00:14:35]} {[%emt
00:06:10]} 30. Bc2 {[%clk 00:45:41]} {[%emt 00:03:50]} Ke7 {[%clk 00:10:57]}
{[%emt 00:04:08]} 31. h5 {[%clk 00:43:28]} {[%emt 00:02:44]} Kf8 {[%clk
00:11:05]} {[%emt 00:00:22]} 32. Bd3 {[%clk 00:43:39]} {[%emt 00:00:19]} Kg8
{[%clk 00:09:39]} {[%emt 00:01:55]} 33. Qg4 {[%clk 00:43:46]} {[%emt 00:00:22]}
Qd8 {[%clk 00:04:36]} {[%emt 00:05:34]} 34. Qh3 {[%clk 00:40:51]} {[%emt
00:03:25]} Nb8 {[%clk 00:03:17]} {[%emt 00:01:49]} 35. Qh1 {[%clk 00:40:22]}
{[%emt 00:00:59]} Qc7 {[%clk 00:02:10]} {[%emt 00:01:38]} 36. Qh4 {[%clk
00:40:18]} {[%emt 00:00:32]} Qd7 {[%clk 00:02:38]} {[%emt 00:00:04]} 37. Kf2
{[%clk 00:21:17]} {[%emt 00:19:31]} Bf8 {[%clk 00:02:56]} {[%emt 00:00:12]} 38.
g4 {[%clk 00:20:11]} {[%emt 00:01:36]} Be7 {[%clk 00:02:01]} {[%emt 00:01:25]}
39. Qh3 {[%clk 00:20:28]} {[%emt 00:00:13]} Bd8 {[%clk 00:01:48]} {[%emt
00:00:43]} 40. f5 {[%clk 00:19:44]} {[%emt 00:01:14]} Qe7 {[%clk 00:00:55]}
{[%emt 00:01:23]} 41. hxg6 {[%clk 00:03:01]} {[%emt 00:17:13]} fxg6 {[%clk
00:23:57]} {[%emt 00:07:28]} 42. fxg6 {[%clk 00:31:55]} {[%emt 00:01:36]} Qh4+
{[%clk 00:23:38]} {[%emt 00:00:49]} 43. Qxh4 {[%clk 00:24:49]} {[%emt
00:07:37]} Bxh4+ {[%clk 00:23:59]} {[%emt 00:00:08]} 44. Kf3 {[%clk 00:24:30]}
{[%emt 00:00:49]} h6 {[%clk 00:24:18]} {[%emt 00:00:11]} 45. Bf5 {[%clk
00:22:30]} {[%emt 00:02:31]} exf5 {[%clk 00:20:03]} {[%emt 00:04:45]} 46. gxf5
{[%clk 00:22:57]} {[%emt 00:00:04]} Nd7 {[%clk 00:19:56]} {[%emt 00:00:36]} 47.
Kg4 {[%clk 00:22:48]} {[%emt 00:00:39]} Bg5 {[%clk 00:16:45]} {[%emt 00:03:41]}
48. f6 {[%clk 00:22:34]} {[%emt 00:00:44]} Nf8 {[%clk 00:09:56]} {[%emt
00:07:19]} 49. Kf5 {[%clk 00:22:09]} {[%emt 00:00:56]} Be3 {[%clk 00:10:22]}
{[%emt 00:00:04]} 50. e6 {[%clk 00:21:41]} {[%emt 00:00:58]} Nxe6 {[%clk
00:10:25]} {[%emt 00:00:27]} 51. Kxe6 {[%clk 00:22:06]} {[%emt 00:00:05]} d4
{[%clk 00:10:21]} {[%emt 00:00:34]} 52. Ke7 {[%clk 00:22:20]} {[%emt 00:00:16]}
Bg5 {[%clk 00:09:52]} {[%emt 00:00:58]} 53. Bxd4 {[%clk 00:22:45]} {[%emt
00:00:06]} h5 {[%clk 00:10:09]} {[%emt 00:00:13]} 54. Ke6 {[%clk 00:23:07]}
{[%emt 00:00:07]} 1-0

[Event "Internationales Werder Bremen IM-Turnier"]
[Site "SV Werder Bremen, Clubräume in der Hemelinger Straße 17, Germany"]
[Date "2018.06.19"]
[Round "4.3"]
[White "Osmanodja, Filiz"]
[Black "Grabarczyk, Miroslav"]
[Result "1/2-1/2"]
[TimeControl "90 Minuten/40 Züge + 30 Minuten/Rest + 30 Sekunden ab dem ersten Zug"]
[WhiteTitle "WIM"]
[BlackTitle "GM"]
[WhiteFideId "24633569"]
[BlackFideId "1101684"]
[WhiteElo "2352"]
[BlackElo "2402"]

1. e4 {[%clk 01:30:58]} {[%emt 00:00:01]} e5 {[%clk 01:30:51]} {[%emt
00:00:08]} 2. Nf3 {[%clk 01:31:26]} {[%emt 00:00:03]} Nf6 {[%clk 01:31:01]}
{[%emt 00:00:19]} 3. Nxe5 {[%clk 01:31:51]} {[%emt 00:00:06]} d6 {[%clk
01:31:24]} {[%emt 00:00:07]} 4. Nf3 {[%clk 01:32:19]} {[%emt 00:00:02]} Nxe4
{[%clk 01:31:44]} {[%emt 00:00:09]} 5. Nc3 {[%clk 01:32:48]} {[%emt 00:00:02]}
Nf6 {[%clk 01:31:56]} {[%emt 00:00:17]} 6. d4 {[%clk 01:33:13]} {[%emt
00:00:05]} Be7 {[%clk 01:32:00]} {[%emt 00:00:25]} 7. Bd3 {[%clk 01:32:28]}
{[%emt 00:01:16]} Bg4 {[%clk 01:31:37]} {[%emt 00:00:52]} 8. h3 {[%clk
01:31:32]} {[%emt 00:01:27]} Bh5 {[%clk 01:31:27]} {[%emt 00:00:40]} 9. Bf4
{[%clk 01:30:46]} {[%emt 00:01:16]} O-O {[%clk 01:25:58]} {[%emt 00:05:58]} 10.
g4 {[%clk 01:24:14]} {[%emt 00:07:03]} Bg6 {[%clk 01:25:06]} {[%emt 00:01:21]}
11. d5 {[%clk 01:20:22]} {[%emt 00:04:23]} Re8 {[%clk 01:16:17]} {[%emt
00:09:18]} 12. Bxg6 {[%clk 01:18:39]} {[%emt 00:02:14]} hxg6 {[%clk 01:14:11]}
{[%emt 00:02:36]} 13. Qd2 {[%clk 01:14:45]} {[%emt 00:04:25]} Bf8+ {[%clk
01:14:00]} {[%emt 00:00:40]} 14. Be3 {[%clk 01:09:48]} {[%emt 00:05:28]} Nbd7
{[%clk 01:11:58]} {[%emt 00:02:30]} 15. O-O-O {[%clk 01:06:46]} {[%emt
00:03:33]} Nb6 {[%clk 01:12:12]} {[%emt 00:00:15]} 16. Bg5 {[%clk 00:53:02]}
{[%emt 00:14:16]} Qd7 {[%clk 01:10:13]} {[%emt 00:02:27]} 17. Qf4 {[%clk
00:41:55]} {[%emt 00:11:38]} Nh7 {[%clk 01:07:07]} {[%emt 00:03:35]} 18. Bh4
{[%clk 00:40:04]} {[%emt 00:02:23]} c6 {[%clk 00:52:42]} {[%emt 00:14:52]} 19.
g5 {[%clk 00:33:12]} {[%emt 00:07:24]} Nxd5 {[%clk 00:36:02]} {[%emt 00:17:11]}
20. Nxd5 {[%clk 00:29:43]} {[%emt 00:04:00]} cxd5 {[%clk 00:36:26]} {[%emt
00:00:05]} 21. Rxd5 {[%clk 00:22:14]} {[%emt 00:07:59]} Rac8 {[%clk 00:36:27]}
{[%emt 00:00:27]} 22. c3 {[%clk 00:18:25]} {[%emt 00:04:19]} Rc5 {[%clk
00:18:40]} {[%emt 00:18:18]} 23. Qd2 {[%clk 00:12:29]} {[%emt 00:06:27]} Qa4
{[%clk 00:11:21]} {[%emt 00:07:48]} 24. Kb1 {[%emt 00:00:08]} Qe4+ 25. Rd3 Rd5
{[%emt 00:00:03]} 26. Rd1 {[%emt 00:00:01]} 1/2-1/2

[Event "Internationales Werder Bremen IM-Turnier"]
[Site "SV Werder Bremen, Clubräume in der Hemelinger Straße 17, Germany"]
[Date "2018.06.20"]
[Round "5.4"]
[White "Skliarov, Viktor"]
[Black "Osmanodja, Filiz"]
[Result "1/2-1/2"]
[TimeControl "90 Minuten/40 Züge + 30 Minuten/Rest + 30 Sekunden ab dem ersten Zug"]
[WhiteTitle "IM"]
[BlackTitle "WIM"]
[WhiteFideId "14106736"]
[BlackFideId "24633569"]
[WhiteElo "2359"]
[BlackElo "2352"]

1. e4 {[%clk 01:30:56]} {[%emt 00:00:02]} c5 {[%clk 01:30:58]} {[%emt
00:00:03]} 2. Nf3 {[%clk 01:31:15]} {[%emt 00:00:11]} d6 {[%clk 01:31:26]}
{[%emt 00:00:03]} 3. d4 {[%clk 01:31:37]} {[%emt 00:00:08]} cxd4 {[%clk
01:31:53]} {[%emt 00:00:04]} 4. Qxd4 {[%clk 01:32:01]} {[%emt 00:00:05]} Nc6
{[%clk 01:32:17]} {[%emt 00:00:06]} 5. Bb5 {[%clk 01:32:25]} {[%emt 00:00:05]}
Bd7 {[%clk 01:32:46]} {[%emt 00:00:02]} 6. Bxc6 {[%clk 01:32:46]} {[%emt
00:00:09]} Bxc6 {[%clk 01:33:14]} {[%emt 00:00:02]} 7. Nc3 {[%clk 01:33:07]}
{[%emt 00:00:09]} Nf6 {[%clk 01:32:50]} {[%emt 00:00:55]} 8. Bg5 {[%clk
01:33:29]} {[%emt 00:00:07]} e6 {[%clk 01:33:18]} {[%emt 00:00:03]} 9. O-O-O
{[%clk 01:33:51]} {[%emt 00:00:08]} Be7 {[%clk 01:33:31]} {[%emt 00:00:17]} 10.
Rhe1 {[%clk 01:34:15]} {[%emt 00:00:06]} O-O {[%clk 01:33:52]} {[%emt
00:00:09]} 11. Kb1 {[%clk 01:34:40]} {[%emt 00:00:04]} h6 {[%clk 01:34:02]}
{[%emt 00:00:21]} 12. Bh4 {[%clk 01:34:48]} {[%emt 00:00:20]} Qc7 {[%clk
01:34:21]} {[%emt 00:00:12]} 13. Qd3 {[%clk 01:30:33]} {[%emt 00:04:45]} a6
{[%clk 01:34:05]} {[%emt 00:00:48]} 14. Nd4 {[%clk 01:28:51]} {[%emt 00:02:11]}
Rfd8 {[%clk 01:34:21]} {[%emt 00:00:14]} 15. f3 {[%clk 01:18:05]} {[%emt
00:11:15]} b5 {[%clk 01:33:57]} {[%emt 00:00:55]} 16. g4 {[%clk 01:17:16]}
{[%emt 00:01:18]} b4 {[%clk 01:30:24]} {[%emt 00:04:04]} 17. Nce2 {[%clk
01:17:36]} {[%emt 00:00:09]} Be8 {[%clk 01:26:22]} {[%emt 00:04:33]} 18. g5
{[%clk 01:04:46]} {[%emt 00:13:20]} Nh7 {[%clk 01:05:48]} {[%emt 00:21:05]} 19.
f4 {[%clk 01:03:52]} {[%emt 00:01:22]} Rdc8 {[%clk 00:53:54]} {[%emt 00:12:25]}
20. Rg1 {[%clk 00:46:45]} {[%emt 00:17:36]} hxg5 {[%clk 00:50:15]} {[%emt
00:04:10]} 21. fxg5 {[%clk 00:45:39]} {[%emt 00:01:35]} g6 {[%clk 00:48:39]}
{[%emt 00:02:08]} 22. Qd2 {[%clk 00:32:11]} {[%emt 00:13:58]} e5 {[%clk
00:43:29]} {[%emt 00:05:41]} 23. Nf3 {[%clk 00:21:59]} {[%emt 00:10:41]} Bd7
{[%clk 00:41:27]} {[%emt 00:02:33]} 24. Ng3 {[%clk 00:16:45]} {[%emt 00:05:43]}
Be6 {[%clk 00:39:47]} {[%emt 00:02:10]} 25. Nf5 {[%clk 00:11:31]} {[%emt
00:05:44]} gxf5 {[%clk 00:22:15]} {[%emt 00:18:02]} 26. g6 {[%clk 00:11:55]}
{[%emt 00:00:06]} Nf8 {[%clk 00:22:41]} {[%emt 00:00:04]} 27. Bxe7 {[%clk
00:06:43]} {[%emt 00:05:42]} Qxe7 {[%clk 00:22:38]} {[%emt 00:00:33]} 28. g7
{[%clk 00:07:09]} {[%emt 00:00:03]} Nh7 {[%clk 00:13:43]} {[%emt 00:09:25]} 29.
Qh6 {[%clk 00:07:34]} {[%emt 00:00:05]} Qf6 {[%clk 00:05:58]} {[%emt 00:08:16]}
30. Qh5 {[%clk 00:07:59]} {[%emt 00:00:05]} Re8 {[%clk 00:02:07]} {[%emt
00:04:21]} 31. Ng5 {[%clk 00:05:46]} {[%emt 00:02:43]} Qg6 {[%clk 00:02:37]}
{[%emt 00:00:01]} 32. Qh4 {[%clk 00:05:55]} {[%emt 00:00:20]} f4 {[%clk
00:01:28]} {[%emt 00:01:39]} 33. Rde1 {[%clk 00:03:02]} {[%emt 00:03:23]} f5
{[%clk 00:01:56]} {[%emt 00:00:02]} 34. Nh3 {[%clk 00:02:02]} {[%emt 00:01:30]}
Qf6 {[%clk 00:02:12]} {[%emt 00:00:14]} 35. Ng5 {[%clk 00:01:50]} {[%emt
00:00:41]} Qg6 {[%clk 00:02:40]} {[%emt 00:00:02]} 36. Nh3 {[%clk 00:02:15]}
{[%emt 00:00:05]} Qf6 {[%clk 00:02:54]} {[%emt 00:00:16]} 37. Ng5 {[%clk
00:02:41]} {[%emt 00:00:03]} Nxg5 {[%clk 00:02:51]} {[%emt 00:00:33]} 38. Rxg5
{[%clk 00:01:54]} {[%emt 00:01:18]} Kf7 {[%clk 00:03:20]} {[%emt 00:00:01]} 39.
Qh5+ {[%clk 00:00:46]} {[%emt 00:01:37]} Ke7 {[%clk 00:03:47]} {[%emt
00:00:03]} 40. exf5 {[%clk 00:01:01]} {[%emt 00:00:15]} Bf7 {[%clk 00:01:37]}
{[%emt 00:02:40]} 41. Qg4 {[%clk 00:01:08]} {[%emt 00:00:21]} Kd7 {[%clk
00:23:07]} {[%emt 00:09:02]} 42. h4 {[%clk 00:28:19]} {[%emt 00:03:18]} 1/2-1/2